[Event "CRO-ch Youth U19 2020"]
[Site "Vinkovci"]
[Date "2020.08.03"]
[Round "8.13"]
[White "Salamon, Viktor"]
[Black "Novosel, Marko"]
[Result "0-1"]
[ECO "A52"]
[WhiteElo "1805"]
[BlackElo "2155"]
[Annotator "ChessBase"]
[PlyCount "84"]
[EventDate "2020.07.28"]
[EventType "swiss"]
[EventCountry "CRO"]
[SourceTitle "playchess.com"]
[Source "ChessBase"]
[SourceQuality "1"]
[TimeControl "5400+30"]

1. d4 {[%emt 0:00:30]} Nf6 {[%emt 0:00:30]} 2. c4 {[%emt 0:00:00]} e5 {[%emt 0:00:00]} 3. dxe5 {[%emt 0:00:00]} Ng4 {[%emt 0:00:00]} 4. Bf4 {[%emt 0:00:30]} g5 {[%emt 0:00:30]} 5. Bg3 {[%emt 0:00:00]} Bg7 {[%emt 0:00:30]} 6. Nf3 {[%emt 0:01:00]} Nc6 {[%emt 0:00:00]} 7. Nc3 {[%emt 0:00:30]} Ngxe5 {[%emt 0:00:00]} 8. Nxe5 {[%emt 0:00:00]} Nxe5 {[%emt 0:00:30]} 9. e3 {[%emt 0:00:00]} d6 {[%emt 0:00:00]} 10. h4 {[%emt 0:01:30]} g4 {[%emt 0:00:00]} 11. Be2 {[%emt 0:01:30]} h5 {[%emt 0:00:30]} 12. Qb3 {[%emt 0:05:30]} O-O {[%emt 0:05:30]} 13. Nd5 {[%emt 0:05:30]} Ng6 {[%emt 0:02:30]} 14. O-O-O {[%emt 0:07:30]} Be6 {[%emt 0:02:30]} 15. f3 {[%emt 0:07:30]} b5 {[%emt 0:03:30]} 16. Qc2 {[%emt 0:05:30]} bxc4 {[%emt 0:04:30]} 17. Bxc4 {[%emt 0:01:30]} Rb8 {[%emt 0:01:30]} 18. b3 {[%emt 0:02:30]} c6 {[%emt 0:06:30]} 19. Nf4 {[%emt 0:02:30]} Nxf4 {[%emt 0:00:30]} 20. Bxf4 {[%emt 0:02:30]} Bxc4 {[%emt 0:01:30]} 21. Qxc4 {[%emt 0:00:30]} d5 {[%emt 0:00:30]} 22. Qc2 {[%emt 0:01:30]} Qa5 {[%emt 0:06:30]} 23. Rd3 {[%emt 0:06:30]} Rb5 {[%emt 0:00:30]} 24. Kd1 {[%emt 0:09:30]} Rc5 {[%emt 0:02:30]} 25. Qb1 {[%emt 0:00:30]} Rc3 {[%emt 0:01:30]} 26. Rxc3 {[%emt 0:04:30]} Qxc3 {[%emt 0:00:30]} 27. Ke2 {[%emt 0:01:30]} Re8 {[%emt 0:02:30]} 28. Rc1 {[%emt 0:01:30]} Qf6 {[%emt 0:00:30]} 29. g3 {[%emt 0:00:30]} d4 {[%emt 0:01:30]} 30. e4 {[%emt 0:02:30]} Qg6 {[%emt 0:01:30]} 31. Qd3 {[%emt 0:11:37]} f5 {[%emt 0:14:30]} 32. Qc4+ {[%emt 0:00:30]} Kh7 {[%emt 0:00:30]} 33. Qxc6 {[%emt 0:00:30]} gxf3+ {[%emt 0:00:30]} 34. Kxf3 {[%emt 0:00:30]} fxe4+ {[%emt 0:00:30]} 35. Kg2 {[%emt 0:00:30]} Re6 {[%emt 0:00:30]} 36. Qd5 {[%emt 0:00:30]} e3 {[%emt 0:00:30]} 37. Rc8 {[%emt 0:00:30]} e2 {[%emt 0:00:30]} 38. Qd8 {[%emt 0:00:30]} Qe4+ {[%emt 0:00:30]} 39. Kh2 {[%emt 0:00:30]} Qh1+ {[%emt 0:00:30]} 40. Kxh1 {[%emt 0:00:30]} e1=Q+ {[%emt 0:00:30]} 41. Kh2 {[%emt 0:00:30]} Re2+ {[%emt 0:00:30]} 42. Kh3 {[%emt 0:00:30]} Qh1# {[%emt 0:00:30]} 0-1

[Event "CRO-ch Youth U19 2020"]
[Site "Vinkovci"]
[Date "2020.08.04"]
[Round "9.9"]
[White "Jakrlin, Mihael"]
[Black "Ghersinich, Enrico"]
[Result "1-0"]
[ECO "D27"]
[WhiteElo "2183"]
[BlackElo "2299"]
[Annotator "ChessBase"]
[PlyCount "113"]
[EventDate "2020.07.28"]
[EventType "swiss"]
[EventCountry "CRO"]
[SourceTitle "playchess.com"]
[Source "ChessBase"]
[SourceQuality "1"]
[TimeControl "5400+30"]

1. d4 {[%emt 0:00:30]} d5 {[%emt 0:00:30]} 2. c4 {[%emt 0:00:30]} dxc4 {[%emt 0:00:00]} 3. e3 {[%emt 0:01:30]} Nf6 {[%emt 0:00:00]} 4. Bxc4 {[%emt 0:00:30]} e6 {[%emt 0:00:30]} 5. Nf3 {[%emt 0:00:30]} a6 {[%emt 0:00:30]} 6. a4 {[%emt 0:05:30]} c5 {[%emt 0:00:30]} 7. O-O {[%emt 0:04:30]} Nc6 {[%emt 0:00:30]} 8. Nc3 {[%emt 0:00:30]} Be7 {[%emt 0:01:30]} 9. Qe2 {[%emt 0:04:30]} cxd4 {[%emt 0:01:30]} 10. Rd1 {[%emt 0:00:00]} e5 {[%emt 0:01:30]} 11. exd4 {[%emt 0:01:00]} exd4 {[%emt 0:01:30]} 12. Ne5 {[%emt 0:09:30]} O-O {[%emt 0:05:30]} 13. Bf4 {[%emt 0:01:30]} Bc5 {[%emt 0:03:30]} 14. Bg5 {[%emt 0:09:30]} Qd6 {[%emt 0:24:30]} 15. Nxc6 {[%emt 0:16:30]} bxc6 {[%emt 0:00:00]} 16. Bxf6 {[%emt 0:01:30]} Qxf6 {[%emt 0:00:00]} 17. Ne4 {[%emt 0:00:00]} Qe7 {[%emt 0:00:30]} 18. Nxc5 {[%emt 0:00:00]} Qxc5 {[%emt 0:00:30]} 19. Rac1 {[%emt 0:00:30]} Qd6 {[%emt 0:04:30]} 20. Qe4 {[%emt 0:01:30]} Rb8 {[%emt 0:08:30]} 21. Rxd4 {[%emt 0:01:30]} Qh6 {[%emt 0:01:30]} 22. Rcd1 {[%emt 0:02:30]} Rxb2 {[%emt 0:01:30]} 23. Rd6 {[%emt 0:05:30]} Qg5 {[%emt 0:01:30]} 24. h4 {[%emt 0:03:30]} Qc5 {[%emt 0:00:30]} 25. R1d4 {[%emt 0:00:30]} Bf5 {[%emt 0:08:30]} 26. Qe7 {[%emt 0:02:30]} Bg6 {[%emt 0:02:30]} 27. Rf4 {[%emt 0:07:30]} Rb7 {[%emt 0:06:30]} 28. Qxb7 {[%emt 0:00:30]} Qxd6 {[%emt 0:00:00]} 29. g3 {[%emt 0:00:30]} a5 {[%emt 0:03:00]} 30. Qa7 {[%emt 0:01:02]} Qe5 {[%emt 0:00:30]} 31. Kh2 {[%emt 0:00:59]} Qe1 {[%emt 0:01:30]} 32. Qd4 {[%emt 0:02:21]} Qe7 {[%emt 0:05:37]} 33. Qc3 {[%emt 0:01:17]} Qa7 {[%emt 0:01:48]} 34. Qf3 {[%emt 0:02:50]} Qc5 {[%emt 0:00:55]} 35. Bb3 {[%emt 0:00:12]} Qc1 {[%emt 0:01:46]} 36. h5 {[%emt 0:00:35]} Qb1 {[%emt 0:04:24]} 37. hxg6 {[%emt 0:00:09]} Qxg6 {[%emt 0:00:06]} 38. Kg2 {[%emt 0:01:28]} h5 {[%emt 0:00:25]} 39. Rh4 {[%emt 0:00:18]} Rb8 {[%emt 0:01:00]} 40. Bd1 {[%emt 0:00:10]} Rd8 {[%emt 0:03:08]} 41. Rxh5 {[%emt 0:01:14]} Rd6 {[%emt 0:01:25]} 42. Qe2 {[%emt 0:01:13]} Re6 {[%emt 0:01:19]} 43. Qc2 {[%emt 0:00:13]} Qf6 {[%emt 0:00:41]} 44. Rxa5 {[%emt 0:00:30]} g6 {[%emt 0:00:35]} 45. Rc5 {[%emt 0:00:56]} Qa1 {[%emt 0:01:08]} 46. Qd2 {[%emt 0:00:33]} Kh7 {[%emt 0:00:55]} 47. Rc4 {[%emt 0:00:35]} Qe5 {[%emt 0:01:04]} 48. Rh4+ {[%emt 0:00:28]} Kg8 {[%emt 0:00:05]} 49. Qd4 {[%emt 0:00:10]} Kg7 {[%emt 0:00:51]} 50. a5 {[%emt 0:00:44]} g5 {[%emt 0:00:14]} 51. Qxe5+ {[%emt 0:00:06]} Rxe5 {[%emt 0:00:06]} 52. Ra4 {[%emt 0:00:04]} Re7 {[%emt 0:00:18]} 53. a6 {[%emt 0:00:07]} Ra7 {[%emt 0:00:16]} 54. Bf3 {[%emt 0:00:11]} c5 {[%emt 0:00:21]} 55. Bb7 {[%emt 0:00:04]} Kf6 {[%emt 0:00:06]} 56. Rc4 {[%emt 0:00:04]} Ke5 {[%emt 0:00:31]} 57. Rxc5+ {[%emt 0:00:05]} 1-0

[Event "CRO-ch Youth U19 2020"]
[Site "Vinkovci"]
[Date "2020.08.04"]
[Round "9.10"]
[White "Novosel, Marko"]
[Black "Alfirevic, Duje"]
[Result "1-0"]
[ECO "C56"]
[WhiteElo "2147"]
[BlackElo "2011"]
[Annotator "ChessBase"]
[PlyCount "104"]
[EventDate "2020.07.28"]
[EventType "swiss"]
[EventCountry "CRO"]
[SourceTitle "playchess.com"]
[Source "ChessBase"]
[SourceQuality "1"]
[TimeControl "5400+30"]

1. e4 {[%emt 0:00:30]} e5 {[%emt 0:00:30]} 2. Nf3 {[%emt 0:00:00]} Nc6 {[%emt 0:00:00]} 3. d4 {[%emt 0:00:00]} exd4 {[%emt 0:00:00]} 4. Bc4 {[%emt 0:00:30]} Nf6 {[%emt 0:00:00]} 5. e5 {[%emt 0:00:00]} d5 {[%emt 0:00:00]} 6. Bb5 {[%emt 0:00:00]} Ne4 {[%emt 0:00:30]} 7. Nxd4 {[%emt 0:00:30]} Bc5 {[%emt 0:00:30]} 8. Be3 {[%emt 0:00:30]} Bd7 {[%emt 0:03:30]} 9. Bxc6 {[%emt 0:00:30]} bxc6 {[%emt 0:00:30]} 10. O-O {[%emt 0:00:30]} O-O {[%emt 0:00:30]} 11. f3 {[%emt 0:00:00]} Ng5 {[%emt 0:01:30]} 12. f4 {[%emt 0:00:00]} Ne4 {[%emt 0:00:30]} 13. Nd2 {[%emt 0:00:30]} Qe7 {[%emt 0:05:30]} 14. Nxe4 {[%emt 0:06:30]} dxe4 {[%emt 0:00:00]} 15. c3 {[%emt 0:01:30]} f6 {[%emt 0:01:00]} 16. exf6 {[%emt 0:01:30]} Rxf6 {[%emt 0:02:30]} 17. Qe2 {[%emt 0:07:30]} Raf8 {[%emt 0:04:30]} 18. Rf2 {[%emt 0:02:30]} Bd6 {[%emt 0:07:30]} 19. Raf1 {[%emt 0:02:30]} c5 {[%emt 0:12:30]} 20. Nb3 {[%emt 0:01:30]} Kh8 {[%emt 0:09:30]} 21. Nd2 {[%emt 0:17:30]} a5 {[%emt 0:08:30]} 22. Qa6 {[%emt 0:03:30]} g5 {[%emt 0:08:30]} 23. fxg5 {[%emt 0:05:30]} Bxh2+ {[%emt 0:09:30]} 24. Kxh2 {[%emt 0:00:00]} Rxa6 {[%emt 0:03:30]} 25. Rxf8+ {[%emt 0:00:00]} Kg7 {[%emt 0:00:00]} 26. R8f6 {[%emt 0:02:30]} Re6 {[%emt 0:01:00]} 27. Nb3 {[%emt 0:01:30]} Qd6+ {[%emt 0:03:36]} 28. Kg1 {[%emt 0:00:30]} Rxf6 {[%emt 0:01:29]} 29. gxf6+ {[%emt 0:00:00]} Kf7 {[%emt 0:00:45]} 30. Nxc5 {[%emt 0:00:00]} Bc6 {[%emt 0:01:23]} 31. Kf2 {[%emt 0:08:30]} Kxf6 {[%emt 0:08:43]} 32. a4 {[%emt 0:00:30]} Ke7 {[%emt 0:02:32]} 33. Rh1 {[%emt 0:01:30]} Qf6+ {[%emt 0:03:05]} 34. Kg1 {[%emt 0:00:00]} Qf5 {[%emt 0:01:39]} 35. Rh6 {[%emt 0:01:00]} Bd5 {[%emt 0:00:11]} 36. b3 {[%emt 0:00:30]} Bf7 {[%emt 0:01:32]} 37. Rh4 {[%emt 0:00:30]} Bg6 {[%emt 0:00:57]} 38. Rxe4+ {[%emt 0:01:30]} Qxe4 {[%emt 0:00:31]} 39. Nxe4 {[%emt 0:00:30]} Bxe4 {[%emt 0:00:02]} 40. b4 {[%emt 0:00:00]} Bc2 {[%emt 0:00:55]} 41. bxa5 {[%emt 0:00:00]} Bxa4 {[%emt 0:00:03]} 42. a6 {[%emt 0:00:30]} Bc6 {[%emt 0:00:10]} 43. a7 {[%emt 0:00:30]} Ba8 {[%emt 0:00:40]} 44. g4 {[%emt 0:00:00]} Kd6 {[%emt 0:00:20]} 45. Kf2 {[%emt 0:02:00]} c5 {[%emt 0:00:33]} 46. Bf4+ {[%emt 0:00:30]} Kc6 {[%emt 0:01:17]} 47. Ke3 {[%emt 0:00:00]} Kb6 {[%emt 0:00:20]} 48. Bb8 {[%emt 0:00:00]} Kb5 {[%emt 0:00:43]} 49. Kf4 {[%emt 0:00:30]} Kb6 {[%emt 0:00:28]} 50. Ke5 {[%emt 0:00:30]} Bf3 {[%emt 0:00:31]} 51. g5 {[%emt 0:00:30]} c4 {[%emt 0:01:05]} 52. Kd4 {[%emt 0:00:30]} Kb5 {[%emt 0:00:30]} 1-0

[Event "CRO-ch Youth U19 2020"]
[Site "Vinkovci"]
[Date "2020.08.04"]
[Round "9.11"]
[White "Purini, Bruno"]
[Black "Moric, Ivan"]
[Result "1/2-1/2"]
[ECO "B52"]
[WhiteElo "2017"]
[BlackElo "1726"]
[Annotator "ChessBase"]
[PlyCount "62"]
[EventDate "2020.07.28"]
[EventType "swiss"]
[EventCountry "CRO"]
[SourceTitle "playchess.com"]
[Source "ChessBase"]
[SourceQuality "1"]
[TimeControl "5400+30"]

1. e4 {[%emt 0:00:30]} c5 {[%emt 0:00:30]} 2. Nf3 {[%emt 0:00:00]} d6 {[%emt 0:00:00]} 3. Bb5+ {[%emt 0:00:00]} Bd7 {[%emt 0:00:00]} 4. Bxd7+ {[%emt 0:00:30]} Qxd7 {[%emt 0:00:30]} 5. O-O {[%emt 0:00:00]} Nf6 {[%emt 0:01:30]} 6. Qe2 {[%emt 0:01:00]} e6 {[%emt 0:03:30]} 7. c3 {[%emt 0:00:30]} Be7 {[%emt 0:04:30]} 8. d4 {[%emt 0:00:30]} O-O {[%emt 0:04:30]} 9. Rd1 {[%emt 0:01:30]} Qc7 {[%emt 0:09:30]} 10. h3 {[%emt 0:15:30]} Nbd7 {[%emt 0:03:30]} 11. Bf4 {[%emt 0:00:30]} Rac8 {[%emt 0:06:30]} 12. Na3 {[%emt 0:14:30]} a6 {[%emt 0:03:30]} 13. dxc5 {[%emt 0:01:30]} Qxc5 {[%emt 0:03:30]} 14. Bh2 {[%emt 0:09:30]} b5 {[%emt 0:07:30]} 15. Rac1 {[%emt 0:04:30]} Qc6 {[%emt 0:12:30]} 16. Re1 {[%emt 0:03:30]} Nc5 {[%emt 0:00:30]} 17. e5 {[%emt 0:01:30]} Nd5 {[%emt 0:03:30]} 18. c4 {[%emt 0:02:30]} Nb4 {[%emt 0:03:30]} 19. cxb5 {[%emt 0:02:30]} axb5 {[%emt 0:00:30]} 20. exd6 {[%emt 0:08:30]} Bxd6 {[%emt 0:00:00]} 21. Bxd6 {[%emt 0:00:30]} Qxd6 {[%emt 0:00:00]} 22. Red1 {[%emt 0:02:30]} Qb6 {[%emt 0:01:30]} 23. Ne5 {[%emt 0:02:30]} Nxa2 {[%emt 0:08:30]} 24. Rxc5 {[%emt 0:00:30]} Qxc5 {[%emt 0:02:38]} 25. Nd7 {[%emt 0:00:30]} Qb4 {[%emt 0:10:32]} 26. Nxf8 {[%emt 0:00:30]} Rxf8 {[%emt 0:00:43]} 27. Qxb5 {[%emt 0:01:30]} Qxb5 {[%emt 0:00:24]} 28. Nxb5 {[%emt 0:00:30]} Rb8 {[%emt 0:01:21]} 29. Nc3 {[%emt 0:00:00]} Nxc3 {[%emt 0:01:13]} 30. bxc3 {[%emt 0:00:00]} Kf8 {[%emt 0:00:00]} 31. Rd7 {[%emt 0:01:30]} Rc8 {[%emt 0:00:40]} 1/2-1/2

[Event "CRO-ch Youth U19 2020"]
[Site "Vinkovci"]
[Date "2020.08.04"]
[Round "9.12"]
[White "Baric, Marko"]
[Black "Salamon, Viktor"]
[Result "0-1"]
[ECO "A01"]
[WhiteElo "1831"]
[BlackElo "1805"]
[Annotator "NA"]
[PlyCount "114"]
[EventDate "2020.07.28"]
[EventType "swiss"]
[EventCountry "CRO"]
[SourceTitle "playchess.com"]
[Source "ChessBase"]
[SourceQuality "1"]
[TimeControl "5400+30"]

1. b3 {[%emt 0:00:30]} d5 {[%emt 0:00:30]} 2. Bb2 {[%emt 0:00:00]} Bg4 {[%emt 0:01:30]} 3. f3 {[%emt 0:00:00]} Bh5 {[%emt 0:01:30]} 4. g4 {[%emt 0:03:30]} Bg6 {[%emt 0:09:30]} 5. e3 {[%emt 0:08:30]} e6 {[%emt 0:03:30]} 6. h4 {[%emt 0:01:30]} h5 {[%emt 0:00:30]} 7. g5 {[%emt 0:02:30]} Ne7 {[%emt 0:00:30]} 8. Ne2 {[%emt 0:05:30]} Nf5 {[%emt 0:02:30]} 9. Nf4 {[%emt 0:02:30]} Bd6 {[%emt 0:02:30]} 10. Rh3 {[%emt 0:06:30]} c5 {[%emt 0:02:30]} 11. Nxg6 {[%emt 0:01:30]} fxg6 {[%emt 0:00:30]} 12. f4 {[%emt 0:00:30]} O-O {[%emt 0:00:30]} 13. Bg2 {[%emt 0:04:30]} Nc6 {[%emt 0:02:30]} 14. Qe2 {[%emt 0:02:30]} Bc7 {[%emt 0:06:30]} 15. Nc3 {[%emt 0:02:30]} Qd7 {[%emt 0:04:30]} 16. O-O-O {[%emt 0:01:30]} d4 {[%emt 0:03:30]} 17. Ne4 {[%emt 0:12:30]} Bb6 {[%emt 0:00:30]} 18. Nf2 {[%emt 0:04:30]} a5 {[%emt 0:08:30]} 19. Qb5 {[%emt 0:04:30]} Qc7 {[%emt 0:02:30]} 20. Nd3 {[%emt 0:02:30]} a4 {[%emt 0:00:30]} 21. Bxc6 {[%emt 0:07:30]} Nd6 {[%emt 0:01:30]} 22. bxa4 {[%emt 0:09:11]} Nxb5 {[%emt 0:01:30]} 23. Bxb5 {[%emt 0:00:01]} c4 {[%emt 0:00:30]} 24. Ne5 {[%emt 0:01:54]} c3 {[%emt 0:00:30]} 25. Ba1 {[%emt 0:04:00]} dxe3 {[%emt 0:02:30]} 26. Bxc3 {[%emt 0:01:03]} Rxf4 {[%emt 0:02:30]} 27. Nxg6 {[%emt 0:01:24]} Rf2 {[%emt 0:01:30]} 28. Re1 {[%emt 0:03:02]} Rc8 {[%emt 0:01:30]} 29. Rhxe3 {[%emt 0:00:51]} Bxe3 {[%emt 0:02:30]} 30. Rxe3 {[%emt 0:00:02]} Qf7 {[%emt 0:01:30]} 31. Ne5 {[%emt 0:00:41]} Qf4 {[%emt 0:00:30]} 32. Nd3 {[%emt 0:01:37]} Rf1+ {[%emt 0:02:30]} 33. Kb2 {[%emt 0:00:01]} Qxh4 {[%emt 0:00:30]} 34. g6 {[%emt 0:00:31]} Rxc3 {[%emt 0:08:30]} 35. dxc3 {[%emt 0:01:21]} Rf6 {[%emt 0:01:30]} 36. Ne5 {[%emt 0:03:25]} Qf4 {[%emt 0:01:30]} 37. Re1 {[%emt 0:00:00]} h4 {[%emt 0:00:30]} 38. Be8 {[%emt 0:00:20]} h3 {[%emt 0:06:31]} 39. Bf7+ {[%emt 0:00:11]} Kf8 {[%emt 0:00:40]} 40. Nd7+ {[%emt 0:01:32]} Ke7 {[%emt 0:00:20]} 41. Nxf6 {[%emt 0:00:14]} Kxf6 {[%emt 0:00:19]} 42. Rxe6+ {[%emt 0:01:23]} Kg5 {[%emt 0:00:09]} 43. Re1 {[%emt 0:01:59]} Qf3 {[%emt 0:00:27]} 44. c4 {[%emt 0:00:36]} h2 {[%emt 0:03:31]} 45. Bd5 {[%emt 0:00:07]} Qf6+ {[%emt 0:00:25]} 46. Kb1 {[%emt 0:00:38]} Qxg6 {[%emt 0:01:21]} 47. Rh1 {[%emt 0:00:16]} Qb6+ {[%emt 0:01:15]} 48. Kc1 {[%emt 0:00:15]} Kf4 {[%emt 0:01:13]} 49. a5 {[%emt 0:01:07]} Qe3+ {[%emt 0:02:54]} 50. Kb1 {[%emt 0:00:29]} g5 {[%emt 0:01:48]} 51. Bxb7 {[%emt 0:00:51]} g4 {[%emt 0:01:25]} 52. a6 {[%emt 0:00:19]} g3 {[%emt 0:00:30]} 53. Kb2 {[%emt 0:00:21]} Qg1 {[%emt 0:01:20]} 54. c5 {[%emt 0:00:57]} g2 {[%emt 0:00:31]} 55. Rxg1 {[%emt 0:00:46]} hxg1=Q {[%emt 0:00:15]} 56. a7 {[%emt 0:00:06]} Qxc5 {[%emt 0:05:01]} 57. a8=Q {[%emt 0:00:23]} Qb4+ {[%emt 0:00:09]} 0-1

[Event "CRO-ch Youth U19 2020"]
[Site "Vinkovci"]
[Date "2020.08.04"]
[Round "9.13"]
[White "Smetisko, Josip"]
[Black "Birkic, Josip"]
[Result "0-1"]
[ECO "B10"]
[WhiteElo "1940"]
[BlackElo "1984"]
[Annotator "ChessBase"]
[PlyCount "54"]
[EventDate "2020.07.28"]
[EventType "swiss"]
[EventCountry "CRO"]
[SourceTitle "playchess.com"]
[Source "ChessBase"]
[SourceQuality "1"]
[TimeControl "5400+30"]

1. e4 {[%emt 0:00:30]} c6 {[%emt 0:00:30]} 2. d3 {[%emt 0:00:00]} d5 {[%emt 0:00:00]} 3. Nd2 {[%emt 0:00:00]} Nf6 {[%emt 0:00:00]} 4. Ngf3 {[%emt 0:00:00]} Bg4 {[%emt 0:00:30]} 5. Be2 {[%emt 0:00:00]} e6 {[%emt 0:00:00]} 6. c3 {[%emt 0:06:30]} Be7 {[%emt 0:00:00]} 7. h3 {[%emt 0:09:30]} Bh5 {[%emt 0:03:30]} 8. Ne5 {[%emt 0:01:30]} Bg6 {[%emt 0:04:30]} 9. Nxg6 {[%emt 0:01:30]} hxg6 {[%emt 0:00:30]} 10. O-O {[%emt 0:03:30]} Nbd7 {[%emt 0:03:30]} 11. Bf3 {[%emt 0:08:30]} Qb6 {[%emt 0:00:30]} 12. d4 {[%emt 0:02:30]} Rc8 {[%emt 0:03:30]} 13. Qb3 {[%emt 0:08:30]} a5 {[%emt 0:07:30]} 14. Re1 {[%emt 0:02:30]} Qa6 {[%emt 0:01:30]} 15. Be2 {[%emt 0:05:30]} Qa7 {[%emt 0:03:30]} 16. exd5 {[%emt 0:16:30]} cxd5 {[%emt 0:02:30]} 17. Bb5 {[%emt 0:03:30]} O-O {[%emt 0:00:30]} 18. Nf3 {[%emt 0:01:30]} Bd6 {[%emt 0:04:30]} 19. a4 {[%emt 0:05:30]} Rfd8 {[%emt 0:03:30]} 20. Bg5 {[%emt 0:01:30]} b6 {[%emt 0:03:30]} 21. Ne5 {[%emt 0:01:30]} Nb8 {[%emt 0:05:30]} 22. Re3 {[%emt 0:05:38]} Rc7 {[%emt 0:00:30]} 23. Rae1 {[%emt 0:00:11]} Rdc8 {[%emt 0:00:30]} 24. Bxf6 {[%emt 0:01:27]} gxf6 {[%emt 0:00:30]} 25. Nxg6 {[%emt 0:00:08]} fxg6 {[%emt 0:01:30]} 26. Rxe6 {[%emt 0:00:05]} Rd8 {[%emt 0:04:30]} 27. Qxd5 {[%emt 0:00:35]} Bh2+ {[%emt 0:00:30]} 0-1

[Event "CRO-ch Youth U19 2020"]
[Site "Vinkovci"]
[Date "2020.08.04"]
[Round "9.14"]
[White "Vujic, Agata"]
[Black "Dasic, Jelena"]
[Result "1/2-1/2"]
[ECO "B41"]
[WhiteElo "1621"]
[BlackElo "1814"]
[Annotator "NA"]
[PlyCount "24"]
[EventDate "2020.07.28"]
[EventType "swiss"]
[EventCountry "CRO"]
[SourceTitle "playchess.com"]
[Source "ChessBase"]
[SourceQuality "1"]
[TimeControl "5400+30"]

1. e4 {[%emt 0:03:30]} c5 {[%emt 0:00:30]} 2. Nf3 {[%emt 0:00:30]} e6 {[%emt 0:00:30]} 3. d4 {[%emt 0:00:30]} cxd4 {[%emt 0:00:30]} 4. Nxd4 {[%emt 0:01:30]} a6 {[%emt 0:00:00]} 5. c4 {[%emt 0:00:30]} Nf6 {[%emt 0:01:00]} 6. f3 {[%emt 0:23:30]} Qc7 {[%emt 0:01:30]} 7. Bg5 {[%emt 0:00:30]} Qa5+ {[%emt 0:00:30]} 8. Qd2 {[%emt 0:00:30]} Qxd2+ {[%emt 0:00:30]} 9. Nxd2 {[%emt 0:01:30]} Be7 {[%emt 0:05:30]} 10. Be2 {[%emt 0:00:30]} Nc6 {[%emt 0:00:00]} 11. Nxc6 {[%emt 0:00:30]} bxc6 {[%emt 0:00:00]} 12. O-O {[%emt 0:00:30]} Rb8 {[%emt 0:00:30]} 1/2-1/2

[Event "CRO-ch Youth U19 2020"]
[Site "Vinkovci"]
[Date "2020.08.04"]
[Round "9.15"]
[White "Muha, Magdalena"]
[Black "Juric, Matea"]
[Result "1-0"]
[ECO "D45"]
[WhiteElo "1720"]
[BlackElo "1559"]
[Annotator "NA"]
[PlyCount "55"]
[EventDate "2020.07.28"]
[EventType "swiss"]
[EventCountry "CRO"]
[SourceTitle "playchess.com"]
[Source "ChessBase"]
[SourceQuality "1"]
[TimeControl "5400+30"]

1. d4 {[%emt 0:00:30]} d5 {[%emt 0:00:30]} 2. c4 {[%emt 0:00:00]} c6 {[%emt 0:00:00]} 3. Nf3 {[%emt 0:00:00]} Nf6 {[%emt 0:00:00]} 4. Nc3 {[%emt 0:00:30]} e6 {[%emt 0:01:30]} 5. e3 {[%emt 0:01:30]} Be7 {[%emt 0:05:30]} 6. Bd3 {[%emt 0:01:30]} O-O {[%emt 0:00:00]} 7. O-O {[%emt 0:00:30]} c5 {[%emt 0:05:00]} 8. cxd5 {[%emt 0:03:30]} exd5 {[%emt 0:04:30]} 9. dxc5 {[%emt 0:03:30]} Bxc5 {[%emt 0:00:00]} 10. h3 {[%emt 0:05:30]} Nc6 {[%emt 0:02:00]} 11. a3 {[%emt 0:02:30]} d4 {[%emt 0:03:30]} 12. Na4 {[%emt 0:01:30]} Bb6 {[%emt 0:11:30]} 13. Nxb6 {[%emt 0:02:30]} Qxb6 {[%emt 0:00:00]} 14. b4 {[%emt 0:07:30]} dxe3 {[%emt 0:06:00]} 15. Bxe3 {[%emt 0:00:00]} Qd8 {[%emt 0:00:30]} 16. Qc2 {[%emt 0:03:00]} Be6 {[%emt 0:06:30]} 17. Rfd1 {[%emt 0:05:30]} Qc8 {[%emt 0:00:00]} 18. Rac1 {[%emt 0:03:30]} a6 {[%emt 0:03:00]} 19. Qb2 {[%emt 0:05:30]} Bf5 {[%emt 0:09:30]} 20. Be2 {[%emt 0:03:30]} Rd8 {[%emt 0:01:30]} 21. Bd4 {[%emt 0:02:30]} Re8 {[%emt 0:02:30]} 22. Bc4 {[%emt 0:01:30]} Be6 {[%emt 0:01:30]} 23. Bxf6 {[%emt 0:01:30]} Bxc4 {[%emt 0:01:30]} 24. Rxc4 {[%emt 0:00:30]} gxf6 {[%emt 0:00:30]} 25. Qxf6 {[%emt 0:00:30]} Re6 {[%emt 0:00:30]} 26. Rg4+ {[%emt 0:00:30]} Kf8 {[%emt 0:01:30]} 27. Qg7+ {[%emt 0:00:30]} Ke7 {[%emt 0:00:00]} 28. Nh4 {[%emt 0:00:30]} 1-0

[Event "CRO-ch Youth U19 2020"]
[Site "Vinkovci"]
[Date "2020.08.04"]
[Round "9.16"]
[White "Golub, Nikolina"]
[Black "Smetisko, Marija"]
[Result "1/2-1/2"]
[ECO "A36"]
[WhiteElo "1911"]
[BlackElo "1917"]
[Annotator "ChessBase"]
[PlyCount "48"]
[EventDate "2020.07.28"]
[EventType "swiss"]
[EventCountry "CRO"]
[SourceTitle "playchess.com"]
[Source "ChessBase"]
[SourceQuality "1"]
[TimeControl "5400+30"]

1. c4 {[%emt 0:00:30]} c5 {[%emt 0:03:30]} 2. Nc3 {[%emt 0:00:00]} Nc6 {[%emt 0:00:30]} 3. g3 {[%emt 0:00:00]} Nf6 {[%emt 0:01:30]} 4. Bg2 {[%emt 0:00:30]} g6 {[%emt 0:01:30]} 5. e3 {[%emt 0:00:30]} e6 {[%emt 0:07:30]} 6. d4 {[%emt 0:02:30]} cxd4 {[%emt 0:02:30]} 7. exd4 {[%emt 0:00:30]} d5 {[%emt 0:00:30]} 8. Nge2 {[%emt 0:06:30]} Bg7 {[%emt 0:02:30]} 9. O-O {[%emt 0:00:30]} O-O {[%emt 0:02:30]} 10. cxd5 {[%emt 0:09:30]} Nxd5 {[%emt 0:01:30]} 11. Nxd5 {[%emt 0:00:30]} exd5 {[%emt 0:00:00]} 12. Qb3 {[%emt 0:00:30]} Nxd4 {[%emt 0:02:00]} 13. Nxd4 {[%emt 0:00:00]} Bxd4 {[%emt 0:00:30]} 14. Bxd5 {[%emt 0:03:00]} Bh3 {[%emt 0:11:30]} 15. Bh6 {[%emt 0:14:30]} Bxf1 {[%emt 0:11:30]} 16. Bxf8 {[%emt 0:00:00]} Ba6 {[%emt 0:01:30]} 17. Bh6 {[%emt 0:13:00]} Qf6 {[%emt 0:01:30]} 18. Be3 {[%emt 0:02:30]} Bxe3 {[%emt 0:04:30]} 19. fxe3 {[%emt 0:02:30]} Rc8 {[%emt 0:02:30]} 20. Rd1 {[%emt 0:01:30]} Qf5 {[%emt 0:12:30]} 21. e4 {[%emt 0:00:30]} Qf6 {[%emt 0:01:30]} 22. a3 {[%emt 0:04:30]} Be2 {[%emt 0:07:30]} 23. Re1 {[%emt 0:00:30]} Qd4+ {[%emt 0:00:30]} 24. Kg2 {[%emt 0:13:30]} Qd2 {[%emt 0:00:30]} 1/2-1/2